bitfinex/quotes_BTCUSD_20250917
["timestamp","ask_amount","ask_price","bid_price","bid_amount"]
[1758137172220,1e-08,116080.0,116070.0,0.48366981]
[1758137172438,1e-08,116080.0,116070.0,0.48402981]
[1758137172657,1e-08,116080.0,116070.0,0.64275525]
[1758137173119,1e-08,116080.0,116070.0,0.75319318]
[1758137173335,1e-08,116080.0,116070.0,1.12334508]
[1758137173550,1e-08,116080.0,116070.0,1.12534508]
[1758137173763,1e-08,116080.0,116070.0,1.52334508]
[1758137174220,0.53600828,116080.0,116070.0,1.09817682]
[1758137174436,0.53600828,116080.0,116070.0,0.61262981]
[1758137174681,1e-08,116080.0,116070.0,0.98078776]
[1758137174899,1e-08,116080.0,116070.0,0.64070776]
[1758137174900,0.53600828,116080.0,116070.0,0.64070776]
[1758137175117,1e-08,116080.0,116070.0,0.33718776]
[1758137175360,0.53600828,116080.0,116070.0,0.64066776]
[1758137176246,1e-08,116080.0,116070.0,0.63866776]
[1758137176474,1e-08,116080.0,116070.0,0.67717877]
[1758137176706,0.53600828,116080.0,116070.0,0.67717877]
[1758137176924,1e-08,116080.0,116070.0,0.67817877]
[1758137177145,1e-08,116080.0,116070.0,0.67717877]
[1758137177591,1e-08,116080.0,116070.0,0.76444844]
[1758137177812,1e-08,116080.0,116070.0,0.79460034]
[1758137178262,1e-08,116080.0,116070.0,1.13460034]
[1758137178485,1e-08,116080.0,116070.0,1.1617686]
[1758137179411,0.53600828,116080.0,116070.0,0.80060844]
[1758137179621,1e-08,116080.0,116070.0,0.80096844]
[1758137179832,1e-08,116080.0,116070.0,1.10356844]
[1758137180039,1e-08,116080.0,116070.0,1.10392844]
[1758137180241,1e-08,116080.0,116070.0,1.10192844]
[1758137180461,0.53600828,116080.0,116070.0,0.75531743]
[1758137180693,0.53940828,116080.0,116070.0,1.05999743]
[1758137180905,0.53940828,116080.0,116070.0,0.76145743]
[1758137181120,0.53940828,116080.0,116070.0,0.33518776]
[1758137181338,0.53940828,116080.0,116070.0,0.33408776]
[1758137181561,0.56721828,116080.0,116070.0,0.53964776]
[1758137181778,0.56721828,116080.0,116070.0,0.17240981]
[1758137182004,0.56721828,116080.0,116070.0,0.47504981]
[1758137182244,0.00340001,116080.0,116070.0,0.51467325]
[1758137182464,0.00536001,116080.0,116070.0,0.51157325]
[1758137182686,0.53940828,116080.0,116070.0,0.51157325]
[1758137182907,0.53940828,116080.0,116070.0,0.51567325]
[1758137183396,0.53940828,116080.0,116070.0,0.51467325]
[1758137183633,0.53940828,116080.0,116070.0,0.51157325]
[1758137183871,0.53940828,116080.0,116070.0,0.57964499]
[1758137184089,0.53940828,116080.0,116070.0,0.58054499]
[1758137184325,0.53940828,116080.0,116070.0,0.58364499]
[1758137184794,0.53940828,116080.0,116070.0,0.24342155]
[1758137185012,0.54136828,116080.0,116070.0,0.54766155]
[1758137185234,0.53940828,116080.0,116070.0,0.54766155]
[1758137185877,0.00340001,116080.0,116070.0,0.55076155]
[1758137186300,0.00340001,116080.0,116070.0,0.55112155]
[1758137186513,0.00340001,116080.0,116070.0,0.61947617]
[1758137186721,0.00340001,116080.0,116070.0,0.62247617]
[1758137186944,0.00340001,116080.0,116070.0,0.61947617]
[1758137187385,0.00340001,116080.0,116070.0,0.62347617]
[1758137187598,0.00340001,116080.0,116070.0,0.62311617]
[1758137187814,0.00340001,116080.0,116070.0,0.73889774]
[1758137188242,0.00340001,116080.0,116070.0,1.07889774]
[1758137188887,0.00340001,116080.0,116070.0,1.106066]
[1758137189100,1e-08,116080.0,116070.0,1.106066]
[1758137190886,1e-08,116080.0,116070.0,0.81017763]
[1758137191106,1e-08,116080.0,116070.0,1.08816937]
[1758137192998,0.53600828,116080.0,116070.0,0.59500318]
[1758137193204,0.53600828,116080.0,116070.0,0.58973318]
[1758137193410,0.53600828,116080.0,116070.0,0.89705318]
[1758137193663,1e-08,116080.0,116070.0,0.90028318]
[1758137193990,1e-08,116080.0,116070.0,0.98591285]
[1758137194198,1e-08,116080.0,116070.0,1.07118252]
[1758137194847,1e-08,116080.0,116070.0,1.07098252]
[1758137197770,1e-08,116080.0,116070.0,0.76586252]
[1758137198178,1e-08,116080.0,116070.0,0.90008318]
[1758137198406,1e-08,116080.0,116070.0,0.90060318]
[1758137198959,1e-08,116080.0,116070.0,0.90096318]
[1758137199158,1e-08,116080.0,116070.0,0.98623285]
[1758137199382,1e-08,116080.0,116070.0,0.98264285]
[1758137199594,1e-08,116080.0,116070.0,1.06791252]
[1758137199830,0.53798828,116080.0,116070.0,0.54710155]
[1758137200047,0.53798828,116080.0,116070.0,0.0041]
[1758137200048,0.82274291,116080.0,116070.0,0.0041]
[1758137201326,0.82274291,116080.0,116070.0,0.0001]
[1758137201531,0.82274291,116080.0,116070.0,0.0011]
[1758137201965,0.82274291,116080.0,116070.0,0.0001]
[1758137202157,0.82274291,116080.0,116070.0,0.0011]
[1758137202384,2.04211388,116080.0,116070.0,0.0011]
[1758137202590,1.50610561,116080.0,116070.0,0.0011]
[1758137202804,1.50594561,116080.0,116070.0,0.0011]
[1758137203019,0.97013734,116080.0,116070.0,0.0011]
[1758137203241,1.50614561,116080.0,116070.0,0.0011]
[1758137203472,1.50698561,116080.0,116070.0,0.0011]
[1758137203970,1.20114561,116080.0,116070.0,0.0011]
[1758137204205,1.50710561,116080.0,116070.0,0.0001]
[1758137204675,1.50810561,116080.0,116070.0,0.0001]
[1758137204899,1.47667371,116080.0,116070.0,0.0001]
[1758137205106,1.17099371,116080.0,116070.0,0.0001]
[1758137205326,1.47767371,116080.0,116070.0,0.0001]
[1758137205766,1.17199371,116080.0,116070.0,0.0001]
[1758137205971,1.47747371,116080.0,116070.0,0.0001]
[1758137206192,1.50762561,116080.0,116070.0,0.0001]
[1758137206413,0.97161734,116080.0,116070.0,0.0001]
[1758137206650,1.20214561,116080.0,116070.0,0.0001]
[1758137206884,1.50766561,116080.0,116070.0,0.0001]
[1758137207115,1.50766561,116080.0,116060.0,0.0001]
[1758137207116,0.54246171,116070.0,116060.0,1e-08]
[1758137207345,1.85767035,116070.0,116060.0,1e-08]
[1758137207578,1.88684035,116070.0,116060.0,1e-08]
[1758137208201,0.81482381,116070.0,116060.0,1e-08]
[1758137208425,1.28598965,116070.0,116060.0,1e-08]
[1758137208637,1.59326965,116070.0,116060.0,1e-08]
[1758137209070,1.28798965,116070.0,116060.0,1e-08]
[1758137209290,1.25783775,116070.0,116060.0,1e-08]
[1758137209505,0.82475775,116070.0,116060.0,0.17232466]
[1758137209736,0.65244794,116070.0,116060.0,0.17232466]
[1758137210014,1.47039775,116070.0,116060.0,0.17232466]
[1758137210223,1.47039775,116070.0,116060.0,1e-08]
[1758137210444,1.47039775,116070.0,116060.0,0.17232466]
[1758137210893,1.47039775,116070.0,116060.0,1e-08]
[1758137211109,1.47039775,116070.0,116060.0,0.17232466]
[1758137211538,0.93438948,116070.0,116060.0,0.17232466]
[1758137211755,0.93438948,116070.0,116060.0,1e-08]
[1758137211756,1.47039775,116070.0,116060.0,1e-08]
[1758137212191,0.56420827,116070.0,116060.0,1e-08]
[1758137212419,0.86744827,116070.0,116060.0,0.17232466]
[1758137213022,0.33144,116070.0,116060.0,0.17232466]
[1758137213152,0.86744827,116070.0,116060.0,0.17432466]
[1758137213586,1.12799775,116070.0,116060.0,0.00200001]
[1758137213807,0.82275775,116070.0,116060.0,0.00200001]
[1758137214043,0.62127794,116070.0,116060.0,0.17432466]
[1758137214265,0.92611794,116070.0,116060.0,0.17955466]
[1758137214489,0.52054591,116080.0,116070.0,0.17230981]
[1758137214490,0.56022828,116080.0,116070.0,0.17230981]
[1758137214718,0.95231795,116080.0,116070.0,0.17230981]
[1758137215143,1.12469386,116080.0,116070.0,0.17230981]
[1758137215354,1.12469386,116080.0,116070.0,0.17240981]
[1758137215575,0.58868559,116080.0,116070.0,0.17240981]
[1758137215789,0.9523989,116080.0,116070.0,0.17240981]
[1758137216201,0.9521989,116080.0,116070.0,0.17240981]
[1758137216431,0.9521189,116080.0,116070.0,0.17240981]
[1758137216665,0.9521189,116080.0,116070.0,0.17440981]
[1758137216666,0.84262923,116080.0,116070.0,0.17440981]
[1758137216868,8.096e-05,116080.0,116070.0,0.20950626]
[1758137217094,8.096e-05,116080.0,116070.0,0.21273626]
[1758137217315,8.096e-05,116080.0,116070.0,0.17763981]
[1758137217545,0.53806923,116080.0,116070.0,0.17340981]
[1758137217792,0.28681559,116080.0,116070.0,0.17240981]
[1758137218022,0.6505289,116080.0,116070.0,0.17240981]
[1758137218227,0.11452063,116080.0,116070.0,0.17240981]
[1758137218441,0.6505289,116080.0,116070.0,0.17240981]
[1758137218864,8.096e-05,116080.0,116070.0,0.17763981]
[1758137219085,8.096e-05,116080.0,116070.0,0.17799981]
[1758137219323,8.096e-05,116080.0,116070.0,0.48527981]
[1758137219528,8.096e-05,116080.0,116070.0,0.18099981]
[1758137220390,8.096e-05,116080.0,116070.0,0.17540981]
[1758137220600,8.096e-05,116080.0,116070.0,0.18063981]
[1758137220814,0.00206096,116080.0,116070.0,0.17540981]
[1758137221027,0.69381867,116080.0,116070.0,0.17540981]
[1758137221239,0.02628096,116080.0,116070.0,0.17540981]
[1758137221685,0.86929363,116080.0,116070.0,0.0031]
[1758137221932,1.08626834,116080.0,116070.0,0.17540981]
[1758137222164,0.38935063,116080.0,116070.0,0.18076981]
[1758137222369,0.39133063,116080.0,116070.0,0.17540981]
[1758137222602,0.39133063,116080.0,116070.0,0.17735981]
[1758137222809,1.2570333,116080.0,116070.0,0.0031]
[1758137223035,1.2570333,116080.0,116070.0,0.17240981]
[1758137223273,1.08473834,116080.0,116070.0,0.17440981]
[1758137223481,8.096e-05,116080.0,116070.0,0.17435981]
[1758137223692,8.096e-05,116080.0,116070.0,0.17732981]
[1758137223899,8.096e-05,116080.0,116070.0,0.18032981]
[1758137224102,8.096e-05,116080.0,116070.0,0.17735981]
[1758137224556,8.096e-05,116080.0,116070.0,0.18032981]
[1758137225197,8.096e-05,116080.0,116070.0,0.17732981]
[1758137225397,0.00214096,116080.0,116070.0,0.17635981]
[1758137225612,0.00214096,116080.0,116070.0,0.17435981]
[1758137225826,0.66967867,116080.0,116070.0,0.17240981]
[1758137226031,0.69554867,116080.0,116070.0,0.17540981]
[1758137226443,0.69253867,116080.0,116070.0,0.17540981]
[1758137226654,0.02500096,116080.0,116070.0,0.17435981]
[1758137227081,0.99894867,116080.0,116070.0,0.17440981]
[1758137227729,1.2565133,116080.0,116070.0,0.17440981]
[1758137228136,1.08421834,116080.0,116070.0,0.17440981]
[1758137228349,1.08421834,116080.0,116070.0,0.17240981]
[1758137228556,1.2565133,116080.0,116070.0,0.0031]
[1758137228800,1.2565133,116080.0,116070.0,0.17240981]
[1758137229209,1.2565133,116080.0,116070.0,0.17340981]
[1758137230167,1.2565133,116080.0,116070.0,0.0011]
[1758137230386,1.6895933,116080.0,116070.0,0.0011]
[1758137230604,1.7197452,116080.0,116070.0,0.0011]
[1758137231045,2.38728291,116080.0,116070.0,0.0011]
[1758137231446,2.08388291,116080.0,116070.0,0.0001]
[1758137231879,2.38780291,116080.0,116070.0,0.0001]
[1758137232070,1.7192652,116080.0,116070.0,0.0001]
[1758137232280,2.38880291,116080.0,116070.0,0.0001]
[1758137232618,2.08388291,116080.0,116070.0,0.0001]
[1758137232837,2.38888291,116080.0,116070.0,0.0001]
[1758137233040,2.38888291,116080.0,116060.0,1e-08]
[1758137233041,0.59246171,116070.0,116060.0,1e-08]
[1758137233272,1.30999942,116070.0,116060.0,1e-08]
[1758137233473,1.64272942,116070.0,116060.0,1e-08]
[1758137233874,1.33792942,116070.0,116060.0,1e-08]
[1758137234240,1.23792942,116070.0,116060.0,1e-08]
[1758137234479,1.62791909,116070.0,116060.0,1e-08]
[1758137234902,1.32319909,116070.0,116060.0,1e-08]
[1758137235122,1.62779909,116070.0,116060.0,1e-08]
[1758137235342,1.29304719,116070.0,116060.0,1e-08]
[1758137235552,1.59776719,116070.0,116060.0,1e-08]
[1758137235792,1.62791909,116070.0,116060.0,1e-08]
[1758137236225,0.96038138,116070.0,116060.0,1e-08]
[1758137236464,1.69327876,116070.0,116060.0,1e-08]
[1758137237113,1.62943909,116070.0,116060.0,1e-08]
[1758137237329,1.63043909,116070.0,116060.0,1e-08]
[1758137237548,1.32419909,116070.0,116060.0,1e-08]
[1758137237769,1.63043909,116070.0,116060.0,1e-08]
[1758137238431,0.96290138,116070.0,116060.0,1e-08]
[1758137238643,1.32419909,116070.0,116060.0,1e-08]
[1758137238858,1.63023909,116070.0,116060.0,1e-08]
[1758137239060,1.62923909,116070.0,116060.0,1e-08]
[1758137239475,1.29304719,116070.0,116060.0,1e-08]
[1758137240148,0.93206948,116070.0,116060.0,1e-08]
[1758137240387,1.29304719,116070.0,116060.0,1e-08]
[1758137240603,1.59960719,116070.0,116060.0,1e-08]
[1758137240844,0.1723395,116050.0,116040.0,0.0001]
[1758137241064,0.20250626,116040.0,116030.0,0.0001]
[1758137241307,0.50680436,116040.0,116030.0,0.0001]
[1758137241512,0.50379436,116040.0,116030.0,0.0001]
[1758137241889,0.8522424,116040.0,116030.0,0.0001]
[1758137242195,0.84173436,116040.0,116030.0,0.00205]
[1758137242370,0.84178131,116040.0,116030.0,0.00405]
[1758137242576,1.50931902,116040.0,116030.0,0.17441921]
[1758137242817,0.64656695,116040.0,116030.0,0.17441921]
[1758137243029,0.64656695,116040.0,116030.0,0.17938921]
[1758137243030,4.695e-05,116040.0,116030.0,0.17938921]
[1758137243246,4.695e-05,116040.0,116030.0,0.17984921]
[1758137243897,4.695e-05,116040.0,116030.0,1.23897659]
[1758137244164,0.09038662,116040.0,116020.0,0.0001]
[1758137244356,0.51238407,116020.0,116010.0,0.02598485]
[1758137244570,1.20785178,116020.0,116010.0,0.0001]
[1758137244809,1.23800368,116020.0,116010.0,0.0001]
[1758137245021,1.28512434,116020.0,116010.0,0.0001]
[1758137245243,1.23800368,116020.0,116010.0,0.0001]
[1758137245496,1.37075805,116020.0,116010.0,0.0001]
[1758137245724,1.40391417,116020.0,116010.0,0.0001]
[1758137246348,1.43208199,116020.0,116010.0,0.0001]
[1758137246558,1.40491417,116020.0,116010.0,0.0001]
[1758137246758,1.40391417,116020.0,116010.0,0.0001]
[1758137246981,1.48308199,116020.0,116010.0,1e-08]
[1758137247329,2.1506197,116020.0,116010.0,1e-08]
[1758137247539,2.2006197,116020.0,116010.0,1e-08]
[1758137248196,1.53308199,116020.0,116010.0,1e-08]
[1758137248419,1.83884199,116020.0,116010.0,1e-08]
[1758137249264,1.72851805,116020.0,116010.0,1e-08]
[1758137249645,1.67851805,116020.0,116010.0,1e-08]
[1758137249866,1.60056145,116020.0,116010.0,1e-08]
[1758137250245,1.25755145,116020.0,116010.0,1e-08]
[1758137250447,1.25755145,116020.0,116010.0,0.17239894]
[1758137251307,1.59755145,116020.0,116010.0,0.17239894]
[1758137251545,1.59755145,116020.0,116010.0,0.17434894]
[1758137251546,0.75480738,116020.0,116010.0,0.17434894]
[1758137251710,0.08726967,116020.0,116010.0,0.17434894]
[1758137252270,0.08526967,116020.0,116010.0,0.17434894]
[1758137252456,0.92519145,116020.0,116010.0,0.17434894]
[1758137252666,0.75480738,116020.0,116010.0,0.17434894]
[1758137253118,0.92719145,116020.0,116010.0,0.00195001]
[1758137253381,0.95543145,116020.0,116010.0,1e-08]
[1758137253662,0.51241379,116000.0,115990.0,0.05]
[1758137253919,2.26795078,116000.0,115990.0,0.05]
[1758137254169,2.38771536,116000.0,115990.0,0.05]
[1758137254439,2.38771536,116000.0,115990.0,1e-08]
[1758137254440,2.46396536,116000.0,115990.0,1e-08]
[1758137254692,2.48569958,116000.0,115990.0,1e-08]
[1758137255124,2.4602731,116000.0,115990.0,0.00014102]
[1758137255389,0.82015768,116000.0,115990.0,0.00014102]
[1758137255666,1.79369539,116000.0,115990.0,0.00014102]
[1758137255862,1.38769539,116000.0,115990.0,0.00014102]
[1758137256075,1.69353539,116000.0,115990.0,0.00014102]
[1758137256507,1.38969539,116000.0,115990.0,0.00014102]
[1758137256726,1.62963307,116000.0,115990.0,0.00014102]
[1758137257011,1.63063307,116000.0,115990.0,0.00014102]
[1758137257266,1.62963307,116000.0,115990.0,0.00014102]
[1758137258844,1.69375125,116000.0,115990.0,0.00014102]
[1758137259756,1.02621354,116000.0,115990.0,0.00014102]
[1758137259988,0.11552157,116000.0,115990.0,0.00014102]
[1758137260222,0.11552157,116000.0,115990.0,0.00215102]
[1758137260223,0.11652157,116000.0,115990.0,0.00215102]
[1758137260447,1.32167307,116000.0,115990.0,0.00014102]
[1758137260904,0.98167307,116000.0,115990.0,0.00014102]
[1758137261127,1.32167307,116000.0,115990.0,0.00014102]
[1758137261572,1.32471307,116000.0,115990.0,0.00014102]
[1758137261792,1.32371307,116000.0,115990.0,0.00014102]
[1758137262034,1.15129928,116000.0,115990.0,0.17256967]
[1758137262264,1.37805813,116000.0,115990.0,0.00014102]
[1758137262489,1.32371307,116000.0,115990.0,0.00014102]
[1758137262729,1.32067307,116000.0,115990.0,0.17256967]
[1758137263170,1.14825928,116000.0,115990.0,0.17256967]
[1758137263415,0.08536967,116000.0,115990.0,0.27137967]
[1758137263650,0.0001,116000.0,115990.0,1.02418705]
[1758137263889,0.0001,116000.0,115990.0,1.32886705]
[1758137264586,0.0001,116000.0,115990.0,0.93891738]
[1758137265005,0.0001,116000.0,115990.0,0.57569967]
[1758137265252,0.0001,116000.0,115990.0,0.27137967]
[1758137265461,0.0001,116000.0,115990.0,0.27091967]
[1758137265701,0.66763771,116000.0,115990.0,0.17457967]
[1758137265921,0.94853117,116000.0,115990.0,0.26872967]
[1758137266143,0.94853117,116000.0,115990.0,0.17256967]
[1758137266144,0.08536967,116000.0,115990.0,0.17256967]
[1758137266364,0.08536967,116000.0,115990.0,0.18075967]
[1758137266821,0.08536967,116000.0,115990.0,0.17775967]
[1758137267300,0.08536967,116000.0,115990.0,0.17821967]
[1758137267531,0.0001,116000.0,115990.0,0.84575738]
[1758137268029,0.0001,116000.0,115990.0,0.17921967]
[1758137268277,0.0001,116000.0,115990.0,0.84675738]
[1758137268762,0.0001,116000.0,115990.0,0.84575738]
[1758137268984,0.0001,116000.0,115990.0,1.14943738]
[1758137269196,0.0001,116000.0,115990.0,0.48389967]
[1758137270070,0.0034,116000.0,115990.0,1.15143738]
[1758137270951,0.0034,116000.0,115990.0,1.23670705]
[1758137271179,0.0034,116000.0,115990.0,1.15143738]
[1758137272355,1.32701307,116000.0,115990.0,0.00214102]
[1758137272780,1.32701307,116000.0,115990.0,0.30474102]
[1758137272988,1.32701307,116000.0,115990.0,0.00214102]
[1758137273886,1.15459928,116000.0,115990.0,0.30468102]
[1758137274127,1.32701307,116000.0,115990.0,0.00224102]
[1758137274570,1.32701307,116000.0,115990.0,0.30244102]
[1758137274793,0.48402157,116000.0,115990.0,0.17266967]
[1758137275015,0.45882157,116000.0,115990.0,0.17467967]
[1758137275231,0.54140663,116000.0,115990.0,0.17266967]
[1758137275472,0.65743536,116000.0,115990.0,0.47466967]
[1758137275689,0.65743536,116000.0,115990.0,0.00024102]
[1758137275922,0.65643536,116000.0,115990.0,0.00024102]
[1758137276145,1.32701307,116000.0,115990.0,0.00024102]
[1758137276372,1.32701307,116000.0,115990.0,0.30196102]
[1758137276563,1.32701307,116000.0,115990.0,0.47438967]
[1758137276783,1.32701307,116000.0,115990.0,0.17266967]
[1758137276992,1.32691307,116000.0,115990.0,0.17266967]
[1758137277209,1.32691307,116000.0,115990.0,0.47414967]
[1758137277426,1.32691307,116000.0,115990.0,0.00024102]
[1758137278221,1.32691307,116000.0,115990.0,0.30144102]
[1758137278425,1.32691307,116000.0,115990.0,0.00024102]
[1758137278626,1.32691307,116000.0,115990.0,0.30144102]
[1758137278840,0.45872157,116000.0,115990.0,0.17266967]
[1758137279063,0.45882157,116000.0,115990.0,0.47370967]
[1758137279284,0.63123536,116000.0,115990.0,0.47370967]
[1758137279503,0.65534536,116000.0,115990.0,0.47370967]
[1758137279714,0.65748536,116000.0,115990.0,0.30128102]
[1758137279949,1.19756223,116000.0,115990.0,0.30144102]
[1758137280154,1.19756223,116000.0,115990.0,0.00024102]
[1758137280413,0.66057536,116000.0,115990.0,0.00024102]
[1758137280621,1.19756223,116000.0,115990.0,0.00024102]
[1758137281054,1.7845491,116000.0,115990.0,0.00024102]
[1758137281480,0.71057536,116000.0,115990.0,0.00024102]
[1758137281696,1.54852223,116000.0,115990.0,0.00124102]
[1758137281915,1.54852223,116000.0,115990.0,0.00024102]
[1758137282129,1.63951223,116000.0,115990.0,0.00024102]
[1758137282349,1.55152223,116000.0,115990.0,0.00024102]
[1758137282615,2.0885091,116000.0,115990.0,0.00024102]
[1758137282822,1.54852223,116000.0,115990.0,0.00024102]
[1758137283028,1.54928223,116000.0,115990.0,0.00024102]
[1758137283240,1.55128223,116000.0,115990.0,0.00024102]
[1758137283859,0.96104536,116000.0,115990.0,0.00024102]
[1758137284070,1.50113223,116000.0,115990.0,0.00024102]
[1758137284910,1.49913223,116000.0,115990.0,0.00024102]
[1758137285343,1.50013223,116000.0,115990.0,0.00024102]
[1758137285559,2.0861191,116000.0,115990.0,0.00024102]
[1758137285990,2.0871191,116000.0,115990.0,0.00024102]
[1758137286202,1.55013223,116000.0,115990.0,0.00024102]
[1758137286870,2.0861191,116000.0,115990.0,0.00024102]
[1758137287750,1.54913223,116000.0,115990.0,0.00024102]
[1758137287987,2.0861191,116000.0,115990.0,0.00024102]
[1758137288201,2.0861191,116000.0,115990.0,0.00014102]
[1758137288785,1.7855591,116000.0,115990.0,0.00014102]
[1758137289009,2.0858791,116000.0,115990.0,0.00014102]
[1758137289207,2.0848791,116000.0,115990.0,0.00014102]
[1758137289661,2.0878791,116000.0,115990.0,0.00014102]
[1758137289873,2.0848791,116000.0,115990.0,0.00014102]
[1758137290110,1.49773223,116000.0,115990.0,0.00014102]
[1758137290328,1.54749223,116000.0,115990.0,0.00014102]
[1758137290571,1.55049223,116000.0,115990.0,0.00014102]
[1758137290764,2.0874791,116000.0,115990.0,0.00014102]
[1758137291980,2.0844791,116000.0,115990.0,0.00014102]
[1758137292206,2.1754691,116000.0,115990.0,0.00014102]
[1758137292414,2.1764691,116000.0,115990.0,0.00014102]
[1758137292636,2.1754691,116000.0,115990.0,0.00014102]
[1758137292837,2.2254691,116000.0,115990.0,1e-08]
[1758137293115,2.25401697,116000.0,115990.0,1e-08]
[1758137293312,0.73357055,115990.0,115980.0,1e-08]
[1758137293674,0.59261029,115970.0,115960.0,0.0001]
[1758137293872,2.0531737,115970.0,115960.0,0.00024106]
[1758137294074,1.54271683,115970.0,115960.0,0.00024106]
[1758137294481,2.1155989,115960.0,115950.0,0.0005]
[1758137294789,2.14438857,115960.0,115950.0,0.0009703]
[1758137295068,1.6359717,115960.0,115950.0,0.0009703]
[1758137295268,1.5827817,115960.0,115950.0,0.0009703]
[1758137295472,1.5828217,115960.0,115950.0,0.0009703]
[1758137295696,1.5859317,115960.0,115950.0,0.0009703]
[1758137295895,1.5941006,115960.0,115950.0,0.0009703]
[1758137296862,1.2947806,115960.0,115950.0,0.0009703]
[1758137297101,1.5938206,115960.0,115950.0,0.0019703]
[1758137297471,1.5938206,115960.0,115950.0,0.0009703]
[1758137297727,1.2916706,115960.0,115950.0,0.0009703]
[1758137297934,1.5906706,115960.0,115950.0,0.0009703]
[1758137298190,0.8028987,115960.0,115950.0,0.0061403]
[1758137298397,1.1428987,115960.0,115950.0,0.17862844]
[1758137298642,0.8028987,115960.0,115950.0,0.17862844]
[1758137298873,0.26591183,115960.0,115950.0,0.17862844]
[1758137299098,0.63606373,115960.0,115950.0,0.17862844]
[1758137299815,0.6213334,115960.0,115950.0,0.17862844]
[1758137300258,0.63084212,115960.0,115950.0,0.17862844]
[1758137300485,0.62984212,115960.0,115950.0,0.17862844]
[1758137300743,1.16682899,115960.0,115950.0,0.0061403]
[1758137301442,1.16682899,115960.0,115950.0,0.0009703]
[1758137301443,1.19224899,115960.0,115950.0,0.0009703]
[1758137301701,1.16682899,115960.0,115950.0,0.0029503]
[1758137301960,1.46506899,115960.0,115950.0,0.0061403]
[1758137302399,1.46516899,115960.0,115950.0,0.0029503]
[1758137302629,0.95360212,115960.0,115950.0,0.0009703]
[1758137302859,1.49369899,115960.0,115950.0,0.0009703]
[1758137304105,1.49469899,115960.0,115950.0,0.0009703]
[1758137304307,1.49078899,115960.0,115950.0,0.0009703]
[1758137304518,1.49078899,115960.0,115950.0,0.0029503]
[1758137304725,1.48978899,115960.0,115950.0,0.0009703]
[1758137304935,1.16692899,115960.0,115950.0,0.0061403]
[1758137305149,0.92934212,115960.0,115950.0,0.0061403]
[1758137305353,1.16692899,115960.0,115950.0,0.0061403]
[1758137305567,1.46620899,115960.0,115950.0,0.0061403]
[1758137306002,1.46616899,115960.0,115950.0,0.0061403]
[1758137306221,1.46592899,115960.0,115950.0,0.17862844]
[1758137306431,1.46592899,115960.0,115950.0,0.0061403]
[1758137307532,1.46592899,115960.0,115950.0,0.17862844]
[1758137307738,1.46596899,115960.0,115950.0,0.17862844]
[1758137308169,0.92898212,115960.0,115950.0,0.17862844]
[1758137308396,0.92898212,115960.0,115950.0,0.0061403]
[1758137308606,0.92898212,115960.0,115950.0,0.0029503]
[1758137308607,1.46596899,115960.0,115950.0,0.0029503]
[1758137308936,1.49449899,115960.0,115950.0,0.0009703]
[1758137309546,1.49138899,115960.0,115950.0,0.0009703]
[1758137309771,1.49138899,115960.0,115950.0,0.0029503]
[1758137309935,1.48942899,115960.0,115950.0,0.0029503]
[1758137310152,1.49138899,115960.0,115950.0,0.0009703]
[1758137310548,1.46596899,115960.0,115950.0,0.0009703]
[1758137310753,0.62994212,115960.0,115950.0,0.0061403]
[1758137310973,0.62994212,115960.0,115950.0,0.17862844]
[1758137310974,1.46532899,115960.0,115950.0,0.17862844]
[1758137311178,0.0001,115960.0,115950.0,0.71607531]
[1758137311375,0.0001,115960.0,115950.0,0.26435811]
[1758137312218,0.0001,115960.0,115950.0,0.17908844]
[1758137312627,0.0001,115960.0,115950.0,0.71707531]
[1758137313033,0.0001,115960.0,115950.0,0.71607531]
[1758137313245,0.0001,115960.0,115950.0,0.18208844]
[1758137313454,0.0001,115960.0,115950.0,0.47984844]
[1758137313666,0.0001,115960.0,115950.0,0.47684844]
[1758137313888,0.0001,115960.0,115950.0,0.48184844]
[1758137314111,0.0001,115960.0,115950.0,0.47680844]
[1758137314327,0.0001,115960.0,115950.0,0.47656844]
[1758137315579,0.0001,115960.0,115950.0,0.48156844]
[1758137316757,0.0001,115960.0,115950.0,0.48146844]
[1758137316958,0.0001,115960.0,115950.0,0.48098844]
[1758137317588,0.0001,115960.0,115950.0,0.18398844]
[1758137317802,0.0001,115960.0,115950.0,0.48070844]
[1758137318891,0.0001,115960.0,115950.0,1.01769531]
[1758137319281,0.0001,115960.0,115950.0,1.01269531]
[1758137319621,0.0001,115960.0,115950.0,0.47970844]
[1758137319819,0.0001,115960.0,115950.0,1.01269531]
[1758137320252,0.0001,115960.0,115950.0,1.01769531]
[1758137320536,0.0001,115960.0,115950.0,1.05997652]
[1758137321145,0.0001,115960.0,115950.0,1.05953652]
[1758137321577,0.0001,115960.0,115950.0,1.01725531]
[1758137321778,0.0001,115960.0,115950.0,0.72097531]
[1758137321982,0.0001,115960.0,115950.0,1.01717531]
[1758137322150,0.0001,115960.0,115950.0,0.72097531]
[1758137322387,0.0001,115960.0,115950.0,0.48018844]
[1758137322766,0.0001,115960.0,115950.0,0.47956844]
[1758137322968,0.0001,115960.0,115950.0,0.48002844]
[1758137323182,0.0001,115960.0,115950.0,1.01701531]
[1758137323420,0.0001,115960.0,115950.0,1.09219705]
[1758137323603,0.0001,115960.0,115950.0,0.48002844]
[1758137323812,0.0001,115960.0,115950.0,1.01701531]
[1758137324694,0.0001,115970.0,115960.0,0.17247326]
[1758137324892,0.0001,115970.0,115960.0,0.7983498]
[1758137325106,0.0001,115970.0,115960.0,1.0962598]
[1758137325683,0.0001,115970.0,115960.0,0.88564947]
[1758137325902,0.0001,115970.0,115960.0,1.58144947]
[1758137326122,0.0001,115970.0,115960.0,1.58132947]
[1758137326605,0.0001,115970.0,115960.0,1.58532947]
[1758137326821,0.0001,115970.0,115960.0,1.58516947]
[1758137327271,0.0001,115970.0,115960.0,1.58112947]
[1758137327463,0.0001,115970.0,115960.0,1.28564947]
[1758137327676,0.0001,115970.0,115960.0,1.58596947]
[1758137329134,0.0001,115970.0,115960.0,1.58556947]
[1758137331928,0.0001,115970.0,115960.0,1.0485826]
[1758137332145,0.0001,115970.0,115960.0,1.58556947]
[1758137333063,0.0001,115970.0,115960.0,1.29064947]
[1758137333290,0.0001,115970.0,115960.0,1.58472947]
[1758137334868,0.0001,115970.0,115960.0,1.29064947]
[1758137335104,0.0001,115970.0,115960.0,1.0474226]
[1758137335323,0.0001,115970.0,115960.0,1.58440947]
[1758137335539,0.0001,115970.0,115960.0,0.7536626]
[1758137335758,0.0001,115970.0,115960.0,1.29064947]
[1758137335975,0.0001,115970.0,115960.0,1.58440947]
[1758137336449,0.0001,115970.0,115960.0,0.7536626]
[1758137336680,0.0001,115970.0,115960.0,1.58440947]
[1758137337122,0.0001,115970.0,115960.0,1.58786307]
[1758137339567,0.0001,115970.0,115960.0,0.97331686]
[1758137339841,0.0001,115970.0,115960.0,1.21309013]